[Event "*** Titled Tuesday Blitz"]
[Site "Chess.com"]
[Date "2019.02.05"]
[Round "3"]
[White "rasmussvane"]
[Black "TheBigBoss04"]
[Result "1-0"]
[WhiteElo "2740"]
[BlackElo "2537"]
[TimeControl "180+2"]
[EndTime "13:38:36 PST"]
[Termination "rasmussvane won by resignation"]

1. Nf3 {[%clk 0:03:01.9]} 1... d5 {[%clk 0:03:00]} 2. d4 {[%clk 0:03:01]} 2...
Nf6 {[%clk 0:02:59.4]} 3. c4 {[%clk 0:03:01]} 3... e6 {[%clk 0:02:59.5]} 4. g3
{[%clk 0:03:01.4]} 4... Bb4+ {[%clk 0:02:57.4]} 5. Bd2 {[%clk 0:03:02.4]} 5...
Bd6 {[%clk 0:02:58.1]} 6. Bg2 {[%clk 0:03:02.4]} 6... c6 {[%clk 0:02:55.1]} 7.
O-O {[%clk 0:03:03]} 7... Ne4 {[%clk 0:02:43.5]} 8. Nc3 {[%clk 0:03:02.2]} 8...
Nxd2 {[%clk 0:02:40.3]} 9. Nxd2 {[%clk 0:03:01]} 9... f5 {[%clk 0:02:27.9]} 10.
e3 {[%clk 0:03:02.4]} 10... O-O {[%clk 0:02:26.8]} 11. Rb1 {[%clk 0:03:03.1]}
11... Nd7 {[%clk 0:02:10.7]} 12. b4 {[%clk 0:03:02.3]} 12... Nf6 {[%clk
0:02:12.2]} 13. b5 {[%clk 0:02:58.3]} 13... Bd7 {[%clk 0:02:13.4]} 14. a4 {[%clk
0:02:56.8]} 14... Ne4 {[%clk 0:02:01.4]} 15. Qc2 {[%clk 0:02:38.7]} 15... Qf6
{[%clk 0:01:45.7]} 16. c5 {[%clk 0:02:21.3]} 16... Bc7 {[%clk 0:01:38]} 17. bxc6
{[%clk 0:02:22.1]} 17... Bxc6 {[%clk 0:01:38.6]} 18. Nb5 {[%clk 0:02:20.9]}
18... Rf7 {[%clk 0:01:13.3]} 19. Nxc7 {[%clk 0:02:21.3]} 19... Rxc7 {[%clk
0:01:14.2]} 20. Nf3 {[%clk 0:02:22.9]} 20... Rac8 {[%clk 0:01:07.1]} 21. Ne5
{[%clk 0:02:21.8]} 21... Qe7 {[%clk 0:01:04.3]} 22. Rb2 {[%clk 0:02:14.9]} 22...
Qe8 {[%clk 0:00:55.4]} 23. Ra1 {[%clk 0:02:11.6]} 23... Nf6 {[%clk 0:00:45.8]}
24. Bf1 {[%clk 0:02:10.7]} 24... Nd7 {[%clk 0:00:42.3]} 25. Nxc6 {[%clk
0:02:11.1]} 25... bxc6 {[%clk 0:00:33.9]} 26. Rab1 {[%clk 0:02:12.4]} 26... Nf6
{[%clk 0:00:27.6]} 27. a5 {[%clk 0:02:11.6]} 27... Qe7 {[%clk 0:00:21.1]} 28.
Ba6 {[%clk 0:02:05.6]} 28... Rd8 {[%clk 0:00:22.3]} 29. Rb7 {[%clk 0:02:07.2]}
29... Rdd7 {[%clk 0:00:23.5]} 30. Rxc7 {[%clk 0:02:04.6]} 30... Rxc7 {[%clk
0:00:24.2]} 31. Rb8+ {[%clk 0:02:06.2]} 31... Kf7 {[%clk 0:00:25]} 32. Qb1
{[%clk 0:02:05.7]} 32... e5 {[%clk 0:00:14.6]} 33. Qxf5 {[%clk 0:01:41.8]} 33...
exd4 {[%clk 0:00:15.8]} 34. exd4 {[%clk 0:01:43.5]} 34... Qe1+ {[%clk 0:00:17]}
35. Kg2 {[%clk 0:01:45.1]} 35... Qxa5 {[%clk 0:00:18.1]} 36. Be2 {[%clk
0:01:45.9]} 36... Re7 {[%clk 0:00:11.3]} 37. Bf3 {[%clk 0:01:38.4]} 37... Qc3
{[%clk 0:00:10.7]} 38. Qf4 {[%clk 0:01:29.2]} 38... a5 {[%clk 0:00:11.6]} 39.
Rb6 {[%clk 0:01:29.2]} 39... Re6 {[%clk 0:00:07.8]} 40. Rb7+ {[%clk 0:01:24.4]}
40... Re7 {[%clk 0:00:06.6]} 41. Rb6 {[%clk 0:01:22.3]} 41... Re6 {[%clk
0:00:07.4]} 42. Qc7+ {[%clk 0:01:23.4]} 42... Kg6 {[%clk 0:00:07.2]} 43. Qc8
{[%clk 0:01:16.7]} 43... Kf7 {[%clk 0:00:05.2]} 44. Rb7+ {[%clk 0:01:03.8]}
44... Re7 {[%clk 0:00:06.4]} 45. Rxe7+ {[%clk 0:01:04.5]} 45... Kxe7 {[%clk
0:00:08.3]} 46. Qxc6 {[%clk 0:01:05.3]} 46... Qxd4 {[%clk 0:00:09.5]} 47. Qd6+
{[%clk 0:01:05.3]} 47... Kf7 {[%clk 0:00:10.5]} 48. c6 {[%clk 0:01:07.2]} 48...
Ne4 {[%clk 0:00:10.4]} 49. Qf4+ {[%clk 0:01:02.1]} 49... Ke7 {[%clk 0:00:11.4]}
50. Qc7+ {[%clk 0:01:02.6]} 50... Kf6 {[%clk 0:00:11.2]} 51. Qd8+ {[%clk
0:01:00.3]} 51... Kf7 {[%clk 0:00:08.7]} 52. Qd7+ {[%clk 0:00:59.8]} 52... Kf6
{[%clk 0:00:09.6]} 53. Qd8+ {[%clk 0:00:28.5]} 53... Kf7 {[%clk 0:00:10.5]} 54.
Qc7+ {[%clk 0:00:29.3]} 54... Kf6 {[%clk 0:00:11.4]} 55. Qf4+ {[%clk 0:00:30.4]}
55... Ke7 {[%clk 0:00:12.4]} 56. Bg4 {[%clk 0:00:30.6]} 56... Qc5 {[%clk
0:00:04.9]} 57. c7 {[%clk 0:00:28.9]} 57... Nd6 {[%clk 0:00:06.2]} 58. Qe5+
{[%clk 0:00:28.3]} 58... Kf7 {[%clk 0:00:04.4]} 59. Qe6+ {[%clk 0:00:23.3]}
59... Kf8 {[%clk 0:00:05.5]} 60. c8=Q+ {[%clk 0:00:23.7]} 60... Nxc8 {[%clk
0:00:06.9]} 61. Qxc8+ {[%clk 0:00:25.2]} 61... Qxc8 {[%clk 0:00:08.6]} 62. Bxc8
{[%clk 0:00:26.9]} 62... Ke7 {[%clk 0:00:09.7]} 63. Ba6 {[%clk 0:00:21.7]} 63...
a4 {[%clk 0:00:09.9]} 64. Bd3 {[%clk 0:00:23.3]} 64... a3 {[%clk 0:00:09.7]} 65.
Bb1 {[%clk 0:00:24.5]} 65... Kd6 {[%clk 0:00:10.7]} 66. Kf3 {[%clk 0:00:25.8]}
66... Kc5 {[%clk 0:00:12.2]} 67. Ke3 {[%clk 0:00:25.5]} 67... Kc4 {[%clk
0:00:13.1]} 68. Ba2+ {[%clk 0:00:26.9]} 68... Kc5 {[%clk 0:00:10.4]} 69. f4
{[%clk 0:00:27.1]} 69... g6 {[%clk 0:00:09.1]} 70. g4 {[%clk 0:00:27.9]} 70...
h6 {[%clk 0:00:06.1]} 71. h3 {[%clk 0:00:28.3]} 71... g5 {[%clk 0:00:06.8]} 72.
f5 {[%clk 0:00:29.1]} 72... Kc6 {[%clk 0:00:04.4]} 73. Kd4 {[%clk 0:00:30.3]}
73... Kd6 {[%clk 0:00:06.2]} 74. Bxd5 {[%clk 0:00:31.5]} 74... Ke7 {[%clk
0:00:07.9]} 75. Ke5 {[%clk 0:00:32.8]} 75... Kf8 {[%clk 0:00:08.6]} 76. Kf6
{[%clk 0:00:34.1]} 1-0

[Event "*** Titled Tuesday Blitz"]
[Site "Chess.com"]
[Date "2019.02.05"]
[Round "3"]
[White "Alekseyviktorovich"]
[Black "MathiasWomacka"]
[Result "1/2-1/2"]
[WhiteElo "2310"]
[BlackElo "2228"]
[TimeControl "180+2"]
[EndTime "13:38:48 PST"]
[Termination "Game drawn by agreement"]

1. e4 {[%clk 0:02:59.4]} 1... c5 {[%clk 0:03:00.1]} 2. Nf3 {[%clk 0:03:00]} 2...
d6 {[%clk 0:03:01.6]} 3. Bb5+ {[%clk 0:03:00.3]} 3... Nd7 {[%clk 0:03:01.8]} 4.
d4 {[%clk 0:03:00.7]} 4... cxd4 {[%clk 0:03:01.6]} 5. Qxd4 {[%clk 0:03:01.3]}
5... a6 {[%clk 0:03:03.1]} 6. Bxd7+ {[%clk 0:03:02]} 6... Bxd7 {[%clk 0:03:05]}
7. c4 {[%clk 0:03:03.1]} 7... Rc8 {[%clk 0:02:57.7]} 8. Nc3 {[%clk 0:03:03.3]}
8... e5 {[%clk 0:02:55.9]} 9. Qd3 {[%clk 0:03:04]} 9... Qc7 {[%clk 0:02:57.1]}
10. b3 {[%clk 0:02:58.7]} 10... b5 {[%clk 0:02:57.9]} 11. Nd5 {[%clk 0:02:59.1]}
11... Qc6 {[%clk 0:02:58.6]} 12. Nd2 {[%clk 0:02:52.7]} 12... Nf6 {[%clk
0:02:59.5]} 13. Nxf6+ {[%clk 0:02:40]} 13... gxf6 {[%clk 0:03:01.4]} 14. O-O
{[%clk 0:02:39]} 14... Rg8 {[%clk 0:02:51.6]} 15. cxb5 {[%clk 0:02:25.4]} 15...
axb5 {[%clk 0:02:45.3]} 16. a4 {[%clk 0:02:24.7]} 16... f5 {[%clk 0:02:35]} 17.
axb5 {[%clk 0:02:08.7]} 17... Qxb5 {[%clk 0:02:36.9]} 18. Qxb5 {[%clk
0:01:41.5]} 18... Bxb5 {[%clk 0:02:38.8]} 19. Re1 {[%clk 0:01:42.2]} 19... fxe4
{[%clk 0:02:09.8]} 20. Nxe4 {[%clk 0:01:40.5]} 20... Be7 {[%clk 0:02:11.1]} 21.
Ba3 {[%clk 0:01:39.1]} 21... d5 {[%clk 0:01:57.7]} 22. Nd6+ {[%clk 0:01:27.1]}
22... Bxd6 {[%clk 0:01:58.2]} 23. Bxd6 {[%clk 0:01:28.1]} 23... f6 {[%clk
0:01:57.5]} 24. Ra7 {[%clk 0:01:26.3]} 24... Rd8 {[%clk 0:01:43.2]} 25. Re7+
{[%clk 0:01:12.2]} 25... Kf8 {[%clk 0:01:43.5]} 26. Bb4 {[%clk 0:01:12.5]} 26...
Rg4 {[%clk 0:01:35.2]} 27. Ba3 {[%clk 0:01:03.5]} 27... Kg8 {[%clk 0:01:35.9]}
28. Ra7 {[%clk 0:00:54]} 28... Rg7 {[%clk 0:01:33.9]} 29. Rxg7+ {[%clk
0:00:47.9]} 29... Kxg7 {[%clk 0:01:35.8]} 30. Rc1 {[%clk 0:00:49.1]} 30... d4
{[%clk 0:01:28.6]} 31. Bb4 {[%clk 0:00:49.2]} 31... Rd7 {[%clk 0:01:20.4]} 32.
f3 {[%clk 0:00:49.4]} 32... f5 {[%clk 0:01:17.9]} 33. Rc5 {[%clk 0:00:48.7]}
33... Ba6 {[%clk 0:01:05.4]} 34. Rxe5 {[%clk 0:00:48.5]} 34... d3 {[%clk
0:01:06.7]} 35. Bd2 {[%clk 0:00:43.3]} 35... Rc7 {[%clk 0:01:04]} 36. Kf2 {[%clk
0:00:43.6]} 36... Rc2 {[%clk 0:01:03.3]} 37. Ke3 {[%clk 0:00:44.7]} 37... Kf6
{[%clk 0:01:02.1]} 38. Ra5 {[%clk 0:00:44.9]} 38... Bb7 {[%clk 0:00:58.1]} 39.
Kxd3 {[%clk 0:00:43.2]} 39... Rc8 {[%clk 0:00:59.1]} 40. Bc3+ {[%clk 0:00:41.3]}
40... Kg6 {[%clk 0:00:58.7]} 41. b4 {[%clk 0:00:37.7]} 41... Rd8+ {[%clk
0:00:58.3]} 42. Bd4 {[%clk 0:00:36.6]} 42... Ra8 {[%clk 0:00:51.6]} 43. Rxa8
{[%clk 0:00:34]} 43... Bxa8 {[%clk 0:00:53.5]} 44. Be5 {[%clk 0:00:26.3]} 44...
Kf7 {[%clk 0:00:53.8]} 45. Ke3 {[%clk 0:00:26]} 45... Ke6 {[%clk 0:00:52.9]} 46.
Bb8 {[%clk 0:00:26.6]} 46... Bc6 {[%clk 0:00:48.4]} 47. h3 {[%clk 0:00:27.5]}
47... h5 {[%clk 0:00:42.7]} 48. Kf4 {[%clk 0:00:28.3]} 48... Bb5 {[%clk
0:00:36.7]} 49. Ba7 {[%clk 0:00:27.8]} 49... Bf1 {[%clk 0:00:36.8]} 50. Kg3
{[%clk 0:00:28.1]} 50... Kd5 {[%clk 0:00:30.9]} 51. h4 {[%clk 0:00:28.3]} 51...
Ke6 {[%clk 0:00:29.1]} 52. Bc5 {[%clk 0:00:28.1]} 52... Kd5 {[%clk 0:00:29]} 53.
Kf2 {[%clk 0:00:28.9]} 53... Bb5 {[%clk 0:00:29.2]} 54. Ke3 {[%clk 0:00:29.3]}
54... Bf1 {[%clk 0:00:28.8]} 55. g3 {[%clk 0:00:29.8]} 55... Ke6 {[%clk
0:00:26.3]} 56. Kd4 {[%clk 0:00:29.6]} 56... Be2 {[%clk 0:00:27.1]} 57. f4
{[%clk 0:00:30.5]} 57... Bb5 {[%clk 0:00:26.4]} 58. Bf8 {[%clk 0:00:30.6]} 58...
Bf1 {[%clk 0:00:19.8]} 59. Kc5 {[%clk 0:00:30.8]} 59... Bg2 {[%clk 0:00:19.9]}
60. Bd6 {[%clk 0:00:26.5]} 60... Bf3 {[%clk 0:00:20.1]} 61. Be5 {[%clk
0:00:27.2]} 61... Bg2 {[%clk 0:00:20.5]} 62. Kb6 {[%clk 0:00:26.4]} 62... Kd7
{[%clk 0:00:20.7]} 63. b5 {[%clk 0:00:24.9]} 63... Bf3 {[%clk 0:00:21.1]} 64.
Kc5 {[%clk 0:00:24.2]} 64... Bg2 {[%clk 0:00:21]} 65. b6 {[%clk 0:00:25.3]}
65... Bf3 {[%clk 0:00:21.5]} 66. Bc7 {[%clk 0:00:23.1]} 66... Bg2 {[%clk
0:00:21.7]} 67. Kd4 {[%clk 0:00:21.5]} 67... Ke6 {[%clk 0:00:22.6]} 68. Kc5
{[%clk 0:00:21.2]} 68... Kd7 {[%clk 0:00:23.1]} 69. Be5 {[%clk 0:00:21.6]} 69...
Bf3 {[%clk 0:00:23.1]} 70. Bd4 {[%clk 0:00:21.1]} 70... Bg2 {[%clk 0:00:21.4]}
71. Kb5 {[%clk 0:00:22.3]} 71... Bb7 {[%clk 0:00:21.1]} 72. Kc5 {[%clk
0:00:21.3]} 72... Bf3 {[%clk 0:00:21.6]} 1/2-1/2

[Event "*** Titled Tuesday Blitz"]
[Site "Chess.com"]
[Date "2019.02.05"]
[Round "3"]
[White "tioloko"]
[Black "RaphaeI"]
[Result "1/2-1/2"]
[WhiteElo "2566"]
[BlackElo "2587"]
[TimeControl "180+2"]
[EndTime "13:38:56 PST"]
[Termination "Game drawn by agreement"]

1. Nf3 {[%clk 0:03:01.9]} 1... Nf6 {[%clk 0:02:59]} 2. g3 {[%clk 0:03:03.8]}
2... g6 {[%clk 0:02:59]} 3. Bg2 {[%clk 0:03:04.8]} 3... Bg7 {[%clk 0:03:00.7]}
4. O-O {[%clk 0:03:06.5]} 4... O-O {[%clk 0:03:02.3]} 5. c4 {[%clk 0:03:07]}
5... d6 {[%clk 0:03:02.6]} 6. Nc3 {[%clk 0:03:07.4]} 6... Nc6 {[%clk 0:02:56.1]}
7. d4 {[%clk 0:03:08.6]} 7... Rb8 {[%clk 0:02:54.8]} 8. Re1 {[%clk 0:03:06.8]}
8... a6 {[%clk 0:02:53.2]} 9. Rb1 {[%clk 0:03:08.2]} 9... e5 {[%clk 0:02:26.7]}
10. d5 {[%clk 0:03:00.9]} 10... Nd4 {[%clk 0:01:51.4]} 11. e3 {[%clk 0:01:58.8]}
11... Nxf3+ {[%clk 0:01:49.3]} 12. Bxf3 {[%clk 0:02:00.7]} 12... Bh3 {[%clk
0:01:33.5]} 13. e4 {[%clk 0:02:00.6]} 13... Nd7 {[%clk 0:01:24.7]} 14. Bg4
{[%clk 0:01:56.8]} 14... Bxg4 {[%clk 0:01:23.4]} 15. Qxg4 {[%clk 0:01:58.7]}
15... f5 {[%clk 0:01:25.3]} 16. exf5 {[%clk 0:01:54.3]} 16... gxf5 {[%clk
0:01:27.2]} 17. Qh5 {[%clk 0:01:54.7]} 17... e4 {[%clk 0:01:16.6]} 18. Bf4
{[%clk 0:01:56]} 18... Nc5 {[%clk 0:01:09]} 19. Bg5 {[%clk 0:01:46.3]} 19... Qd7
{[%clk 0:01:06.3]} 20. Re2 {[%clk 0:01:45.2]} 20... Rbe8 {[%clk 0:01:04.2]} 21.
Nd1 {[%clk 0:01:43.4]} 21... Nd3 {[%clk 0:00:56]} 22. Ne3 {[%clk 0:01:43]} 22...
f4 {[%clk 0:00:54.3]} 23. gxf4 {[%clk 0:01:40.9]} 23... Nxf4 {[%clk 0:00:55.1]}
24. Bxf4 {[%clk 0:01:42.8]} 24... Rxf4 {[%clk 0:00:56]} 25. Kh1 {[%clk
0:01:41.8]} 25... Ref8 {[%clk 0:00:45.4]} 26. Rg1 {[%clk 0:01:41.3]} 26... Qe7
{[%clk 0:00:40.3]} 27. Ng4 {[%clk 0:01:34.8]} 27... Kh8 {[%clk 0:00:41.2]} 28.
Rg2 {[%clk 0:01:25]} 28... Rf3 {[%clk 0:00:36.9]} 29. Ne3 {[%clk 0:01:15.4]}
29... Bd4 {[%clk 0:00:37.1]} 30. Qg4 {[%clk 0:01:09.8]} 30... R3f4 {[%clk
0:00:33.2]} 31. Qg3 {[%clk 0:01:05.6]} 31... Qf6 {[%clk 0:00:30]} 32. Ng4 {[%clk
0:00:53.3]} 32... Qg5 {[%clk 0:00:30.9]} 33. Ne3 {[%clk 0:00:52.2]} 33... Qh6
{[%clk 0:00:30.7]} 34. Re1 {[%clk 0:00:50.8]} 34... Be5 {[%clk 0:00:30.7]} 35.
Reg1 {[%clk 0:00:51.5]} 35... Qg6 {[%clk 0:00:16.5]} 36. Qxg6 {[%clk 0:00:47.1]}
36... hxg6 {[%clk 0:00:18.4]} 37. Rxg6 {[%clk 0:00:48.6]} 37... Kh7 {[%clk
0:00:20.1]} 38. R6g4 {[%clk 0:00:39.8]} 38... Rxg4 {[%clk 0:00:19.2]} 39. Nxg4
{[%clk 0:00:40.2]} 39... Bxb2 {[%clk 0:00:20.4]} 40. Re1 {[%clk 0:00:41.3]}
40... Rf4 {[%clk 0:00:17.8]} 41. h3 {[%clk 0:00:42.6]} 41... Bd4 {[%clk
0:00:17.2]} 42. Kg2 {[%clk 0:00:44.1]} 42... Kg6 {[%clk 0:00:17.4]} 43. Rd1
{[%clk 0:00:35.5]} 43... Bc5 {[%clk 0:00:16.7]} 44. Re1 {[%clk 0:00:35.5]} 44...
b5 {[%clk 0:00:16.9]} 45. cxb5 {[%clk 0:00:35.6]} 45... axb5 {[%clk 0:00:18.8]}
46. Rb1 {[%clk 0:00:37.2]} 46... b4 {[%clk 0:00:20]} 47. Rb3 {[%clk 0:00:36.2]}
47... Kf5 {[%clk 0:00:18.7]} 48. Rg3 {[%clk 0:00:33.2]} 48... Bd4 {[%clk
0:00:12.4]} 49. Rb3 {[%clk 0:00:33.1]} 49... Bc5 {[%clk 0:00:11.6]} 50. Rg3
{[%clk 0:00:33.8]} 50... Bd4 {[%clk 0:00:12.9]} 51. a3 {[%clk 0:00:35]} 51...
bxa3 {[%clk 0:00:13.4]} 52. Rxa3 {[%clk 0:00:36.9]} 52... Bb6 {[%clk 0:00:14.3]}
53. Rc3 {[%clk 0:00:35.7]} 53... Kg5 {[%clk 0:00:14.2]} 54. Rc4 {[%clk
0:00:28.9]} 54... Rf5 {[%clk 0:00:07.5]} 55. Rxe4 {[%clk 0:00:28.3]} 55... Rxd5
{[%clk 0:00:08.7]} 56. Kg3 {[%clk 0:00:28.5]} 56... Rd3+ {[%clk 0:00:09.4]} 57.
f3 {[%clk 0:00:29.8]} 57... Rd1 {[%clk 0:00:09.7]} 58. h4+ {[%clk 0:00:30.9]}
58... Kf5 {[%clk 0:00:10.6]} 59. Rf4+ {[%clk 0:00:31.7]} 59... Ke6 {[%clk
0:00:11.9]} 60. Rf6+ {[%clk 0:00:32.5]} 60... Ke7 {[%clk 0:00:12.8]} 61. Rg6
{[%clk 0:00:33.4]} 61... Rg1+ {[%clk 0:00:13.7]} 62. Kf4 {[%clk 0:00:34.7]}
62... Bd4 {[%clk 0:00:15.3]} 63. h5 {[%clk 0:00:35.6]} 63... c5 {[%clk 0:00:16]}
64. h6 {[%clk 0:00:36.5]} 64... c4 {[%clk 0:00:17.5]} 65. h7 {[%clk 0:00:31.1]}
65... Rh1 {[%clk 0:00:17.7]} 66. Nh6 {[%clk 0:00:28.3]} 66... c3 {[%clk
0:00:16.9]} 67. Nf5+ {[%clk 0:00:27.2]} 67... Kf7 {[%clk 0:00:16.8]} 68. Rxd6
{[%clk 0:00:27.7]} 68... c2 {[%clk 0:00:16.7]} 69. Rc6 {[%clk 0:00:27.5]} 69...
c1=Q+ {[%clk 0:00:14.3]} 70. Rxc1 {[%clk 0:00:28.2]} 70... Rxc1 {[%clk
0:00:16.2]} 71. Nxd4 {[%clk 0:00:29.5]} 71... Kg7 {[%clk 0:00:17]} 72. Ke5
{[%clk 0:00:28.4]} 72... Kxh7 {[%clk 0:00:18]} 73. f4 {[%clk 0:00:29.8]} 73...
Kg6 {[%clk 0:00:18.9]} 74. f5+ {[%clk 0:00:26.8]} 74... Kg5 {[%clk 0:00:20]} 75.
Ne6+ {[%clk 0:00:27.9]} 75... Kh6 {[%clk 0:00:18]} 76. Kf6 {[%clk 0:00:29]}
76... Rc6 {[%clk 0:00:18.3]} 77. Kf7 {[%clk 0:00:29.3]} 1/2-1/2

[Event "*** Titled Tuesday Blitz"]
[Site "Chess.com"]
[Date "2019.02.05"]
[Round "3"]
[White "Arystanner"]
[Black "MartinMatthiesen"]
[Result "0-1"]
[WhiteElo "2745"]
[BlackElo "2485"]
[TimeControl "180+2"]
[EndTime "13:39:42 PST"]
[Termination "MartinMatthiesen won by resignation"]

1. e4 {[%clk 0:03:01.9]} 1... e5 {[%clk 0:02:59.4]} 2. Nf3 {[%clk 0:03:02.9]}
2... Nc6 {[%clk 0:03:00]} 3. Bb5 {[%clk 0:03:04]} 3... a6 {[%clk 0:02:59.8]} 4.
Ba4 {[%clk 0:03:05.1]} 4... Nf6 {[%clk 0:03:00.9]} 5. d3 {[%clk 0:03:06.1]} 5...
b5 {[%clk 0:03:00.8]} 6. Bb3 {[%clk 0:03:07.3]} 6... Bc5 {[%clk 0:03:02.5]} 7.
Nc3 {[%clk 0:03:07.6]} 7... d6 {[%clk 0:03:02.1]} 8. Nd5 {[%clk 0:03:08.7]} 8...
h6 {[%clk 0:02:56.4]} 9. c3 {[%clk 0:03:09.6]} 9... O-O {[%clk 0:02:43.3]} 10.
Nxf6+ {[%clk 0:03:09.4]} 10... Qxf6 {[%clk 0:02:43.3]} 11. Bd5 {[%clk
0:03:11.3]} 11... Bb7 {[%clk 0:02:28.7]} 12. g4 {[%clk 0:03:07.7]} 12... Nd8
{[%clk 0:02:03.5]} 13. g5 {[%clk 0:03:07.5]} 13... hxg5 {[%clk 0:01:55.1]} 14.
Bxg5 {[%clk 0:03:09.4]} 14... Qg6 {[%clk 0:01:56.2]} 15. Bxb7 {[%clk 0:02:42.8]}
15... Nxb7 {[%clk 0:01:56]} 16. Rg1 {[%clk 0:02:42.7]} 16... f6 {[%clk
0:01:24.3]} 17. Qb3+ {[%clk 0:02:25.4]} 17... Kh7 {[%clk 0:00:54.8]} 18. Rg3
{[%clk 0:02:02.1]} 18... Qf7 {[%clk 0:00:45.5]} 19. Be3 {[%clk 0:01:53.2]} 19...
Bxe3 {[%clk 0:00:34.3]} 20. fxe3 {[%clk 0:01:52.9]} 20... Nc5 {[%clk 0:00:34.9]}
21. Qxf7 {[%clk 0:01:50.4]} 21... Rxf7 {[%clk 0:00:35.4]} 22. Ke2 {[%clk
0:01:51.9]} 22... Rh8 {[%clk 0:00:32.8]} 23. b3 {[%clk 0:01:32.6]} 23... Kg8
{[%clk 0:00:31]} 24. h4 {[%clk 0:01:34]} 24... Rh6 {[%clk 0:00:29.4]} 25. Rh1
{[%clk 0:01:25.6]} 25... Kf8 {[%clk 0:00:26.4]} 26. h5 {[%clk 0:01:24.6]} 26...
Ne6 {[%clk 0:00:27.1]} 27. Nh4 {[%clk 0:01:22.4]} 27... Ke8 {[%clk 0:00:27.9]}
28. Nf5 {[%clk 0:01:21.9]} 28... Rh7 {[%clk 0:00:29.1]} 29. a4 {[%clk
0:01:10.9]} 29... bxa4 {[%clk 0:00:23.7]} 30. bxa4 {[%clk 0:01:12.8]} 30... Ng5
{[%clk 0:00:25.2]} 31. Rgg1 {[%clk 0:01:01.1]} 31... Rf8 {[%clk 0:00:19]} 32.
Rb1 {[%clk 0:01:01.6]} 32... Kd7 {[%clk 0:00:19.2]} 33. Rb7 {[%clk 0:01:00.9]}
33... g6 {[%clk 0:00:19.1]} 34. Ng3 {[%clk 0:01:01.6]} 34... gxh5 {[%clk
0:00:19.5]} 35. Rxh5 {[%clk 0:01:00.6]} 35... Rxh5 {[%clk 0:00:20.5]} 36. Nxh5
{[%clk 0:01:02.5]} 36... Kc6 {[%clk 0:00:22.2]} 37. Rb1 {[%clk 0:00:59.7]} 37...
f5 {[%clk 0:00:23.5]} 38. exf5 {[%clk 0:00:53.2]} 38... Rxf5 {[%clk 0:00:24.2]}
39. e4 {[%clk 0:00:54.5]} 39... Nxe4 {[%clk 0:00:21.1]} 40. dxe4 {[%clk
0:00:54.2]} 40... Rxh5 {[%clk 0:00:21.7]} 41. Rb4 {[%clk 0:00:46.5]} 41... Rh3
{[%clk 0:00:22.1]} 42. Kd2 {[%clk 0:00:47.3]} 42... Kc5 {[%clk 0:00:23.2]} 43.
Rb7 {[%clk 0:00:45]} 43... c6 {[%clk 0:00:24.1]} 44. Ra7 {[%clk 0:00:41.2]}
44... Kb6 {[%clk 0:00:22.6]} 45. Rd7 {[%clk 0:00:41]} 45... Rh6 {[%clk
0:00:24.1]} 46. Kd3 {[%clk 0:00:41.2]} 46... Ka5 {[%clk 0:00:24.9]} 47. Rc7
{[%clk 0:00:42.3]} 47... c5 {[%clk 0:00:24.7]} 48. Kc4 {[%clk 0:00:37.7]} 48...
Kxa4 {[%clk 0:00:25.4]} 49. Rb7 {[%clk 0:00:27.1]} 49... Ka3 {[%clk 0:00:17.7]}
50. Ra7 {[%clk 0:00:21.6]} 50... Kb2 {[%clk 0:00:18.4]} 51. Kd5 {[%clk
0:00:21.3]} 51... Kxc3 {[%clk 0:00:19]} 52. Rxa6 {[%clk 0:00:22.9]} 52... Kb4
{[%clk 0:00:18.6]} 53. Rb6+ {[%clk 0:00:23.5]} 53... Ka5 {[%clk 0:00:19]} 54.
Rb1 {[%clk 0:00:23.2]} 54... Ka4 {[%clk 0:00:19.5]} 55. Kc4 {[%clk 0:00:24]}
55... Ka3 {[%clk 0:00:19.8]} 56. Rb3+ {[%clk 0:00:25.2]} 56... Ka2 {[%clk
0:00:20.7]} 57. Rb8 {[%clk 0:00:26.6]} 57... Rh2 {[%clk 0:00:21.6]} 58. Rb6
{[%clk 0:00:25.7]} 58... Rd2 {[%clk 0:00:21.4]} 59. Kc3 {[%clk 0:00:27.2]} 59...
Rd4 {[%clk 0:00:21.8]} 60. Ra6+ {[%clk 0:00:26.9]} 60... Kb1 {[%clk 0:00:22.5]}
61. Rb6+ {[%clk 0:00:27.7]} 61... Kc1 {[%clk 0:00:23.5]} 62. Ra6 {[%clk
0:00:27.8]} 62... Kd1 {[%clk 0:00:23.8]} 63. Ra2 {[%clk 0:00:28.9]} 63... Rxe4
{[%clk 0:00:23]} 64. Rd2+ {[%clk 0:00:30.4]} 64... Ke1 {[%clk 0:00:23.8]} 65.
Rxd6 {[%clk 0:00:32.3]} 65... Rd4 {[%clk 0:00:22.9]} 66. Re6 {[%clk 0:00:33.7]}
66... e4 {[%clk 0:00:21.5]} 67. Re5 {[%clk 0:00:34.7]} 67... Kf2 {[%clk
0:00:22.7]} 68. Rxc5 {[%clk 0:00:35.8]} 68... Rd8 {[%clk 0:00:23.4]} 69. Rf5+
{[%clk 0:00:34.3]} 69... Ke2 {[%clk 0:00:24.4]} 70. Rh5 {[%clk 0:00:35.1]} 70...
e3 {[%clk 0:00:25.4]} 71. Rh7 {[%clk 0:00:33.8]} 71... Ke1 {[%clk 0:00:26.1]}
72. Kc2 {[%clk 0:00:34.2]} 72... e2 {[%clk 0:00:25.3]} 73. Rf7 {[%clk
0:00:33.9]} 73... Rd4 {[%clk 0:00:24.5]} 74. Rf8 {[%clk 0:00:32.5]} 74... Rc4+
{[%clk 0:00:17.1]} 75. Kd3 {[%clk 0:00:32.7]} 75... Rc6 {[%clk 0:00:15.2]} 76.
Re8 {[%clk 0:00:21.1]} 76... Rd6+ {[%clk 0:00:16.1]} 77. Ke3 {[%clk 0:00:16.6]}
77... Kd1 {[%clk 0:00:15.8]} 0-1